bitfinex/quotes_ETHUSD_20240825
["timestamp","ask_amount","ask_price","bid_price","bid_amount"]
[1724562046388,2.4889,2770.4,2769.9,4.26873046]
[1724562046921,2.4889,2770.4,2769.9,7.87894046]
[1724562047208,6.7693031,2770.4,2769.9,1.26873046]
[1724562047413,2.4889,2770.3,2769.8,0.56577783]
[1724562047719,2.4889,2770.3,2769.7,8.48953046]
[1724562048011,2.4889,2770.3,2769.7,4.87912046]
[1724562048418,6.09876,2770.2,2769.7,4.87912046]
[1724562049491,2.4889,2770.2,2769.8,3.61036]
[1724562049914,2.4889,2770.4,2769.9,4.87894046]
[1724562050995,3.22497455,2770.5,2769.9,4.87894046]
[1724562051573,6.83451455,2770.5,2769.9,4.87894046]
[1724562051904,0.74443255,2770.4,2769.9,4.87894046]
[1724562052103,3.22497455,2770.5,2769.9,4.87894046]
[1724562052633,3.22497455,2770.5,2769.9,4.87886046]
[1724562054102,5.71387455,2770.5,2769.9,4.87886046]
[1724562055504,2.4889,2770.5,2770.0,3.61002]
[1724562055666,6.04656,2770.7,2770.1,4.87863046]
[1724562055872,6.04656,2770.7,2770.3,1.26873046]
[1724562056072,2.4373,2770.7,2770.3,1.26873046]
[1724562056298,6.04652,2770.7,2770.3,1.26873046]
[1724562057204,9.65582,2770.7,2770.3,1.26873046]
[1724562057408,6.04652,2770.7,2770.3,1.26873046]
[1724562057709,9.6558,2770.7,2770.3,1.26873046]
[1724562057902,9.6558,2770.7,2770.2,2.2655]
[1724562058205,6.04652,2770.7,2770.2,2.2655]
[1724562059005,9.65583,2770.7,2770.2,2.2655]
[1724562059716,6.04652,2770.7,2770.2,2.2655]
[1724562060131,3.60909,2770.8,2770.3,1.26873046]
[1724562060276,3.60908,2770.8,2770.3,1.26873046]
[1724562061712,3.60901,2770.9,2770.3,4.87841046]
[1724562063044,3.60901,2770.9,2770.3,8.48804046]
[1724562063248,3.60901,2770.9,2770.4,1.14679525]
[1724562063416,3.60901,2770.9,2770.3,4.87836046]
[1724562064229,3.60901,2770.9,2770.4,3.60958]
[1724562064626,3.60901,2770.9,2770.3,4.87836046]
[1724562065062,3.60901,2770.9,2770.3,8.48800046]
[1724562065263,3.60901,2770.9,2770.3,4.87836046]
[1724562065570,3.60901,2770.9,2770.3,6.02517871]
[1724562066938,3.60901,2770.9,2770.3,9.63481871]
[1724562067950,3.60901,2770.9,2770.3,9.63480871]
[1724562068425,3.60901,2770.9,2770.4,3.60956]
[1724562068625,8.96930359,2771.1,2770.5,7.15926046]
[1724562068826,7.46,2771.1,2770.7,4.87792046]
[1724562069395,7.46,2771.1,2770.7,1.26873046]
[1724562071333,7.46,2771.1,2770.6,3.60931]
[1724562071732,11.06867,2771.1,2770.5,3.54983046]
[1724562071967,11.06867,2771.1,2770.4,3.60949]
[1724562071968,5.90558,2771.0,2770.4,3.60949]
[1724562072131,3.60895,2770.9,2770.3,7.15954046]
[1724562072867,3.60895,2770.9,2770.4,3.60958]
[1724562074471,3.80600359,2771.0,2770.4,3.60958]
[1724562075047,2.2967,2771.0,2770.4,3.60958]
[1724562075233,4.64586466,2771.0,2770.4,3.60958]
[1724562075669,6.15516825,2771.0,2770.4,3.60958]
[1724562075973,4.64586466,2771.0,2770.4,7.21916]
[1724562076170,6.15516825,2771.0,2770.4,7.21916]
[1724562077465,6.15516825,2771.0,2770.5,3.60945]
[1724562077655,1.91152819,2770.9,2770.5,3.60945]
[1724562079250,3.80600359,2771.0,2770.5,3.60945]
[1724562082477,3.80600359,2771.0,2770.5,3.60945]
[1724562083158,1.50930359,2770.9,2770.5,3.60945]
[1724562083879,2.2967,2771.0,2770.5,3.60945]
[1724562083880,1.50930359,2771.0,2770.6,2.426]
[1724562086545,1.50930359,2771.1,2770.8,3.60898]
[1724562086750,1.50930359,2771.1,2771.0,6.0348]
[1724562086954,1.50930359,2771.3,2771.1,3.60867]
[1724562087274,1.50930359,2771.4,2771.1,4.87730046]
[1724562087605,1.50930359,2771.6,2771.2,3.60854]
[1724562087768,1.50930359,2771.6,2771.1,8.48588046]
[1724562087961,1.50930359,2771.6,2771.1,4.87730046]
[1724562089392,1.50930359,2771.5,2771.0,2.426]
[1724562090254,6.04831999,2771.6,2771.0,2.426]
[1724562090449,1.50930359,2771.5,2771.0,6.03478]
[1724562091394,6.04831999,2771.6,2771.0,6.03478]
[1724562093358,8.33762544,2771.5,2770.9,4.87755046]
[1724562093692,4.72945544,2771.5,2770.9,4.87755046]
[1724562093894,3.80860359,2771.5,2770.9,8.48640046]
[1724562094068,3.80860359,2771.5,2770.9,4.87755046]
[1724562094295,2.2993,2771.5,2770.9,4.87755046]
[1724562094608,7.41677359,2771.5,2770.9,4.87755046]
[1724562095304,7.41677359,2771.5,2770.9,8.48641046]
[1724562096204,7.41677359,2771.5,2770.9,4.87755046]
[1724562096512,7.41677359,2771.5,2770.9,3.60882]
[1724562096713,8.83519863,2771.5,2770.9,3.60882]
[1724562100716,7.41677359,2771.5,2770.9,4.87755046]
[1724562100882,3.60846,2771.3,2770.8,2.426]
[1724562101083,7.21696,2771.3,2770.8,2.426]
[1724562101426,3.60856,2771.2,2770.6,2.4391]
[1724562101790,5.11776359,2771.3,2770.6,6.04835]
[1724562101989,5.11776359,2771.3,2770.7,6.60917]
[1724562102194,5.11776359,2771.3,2770.7,7.87790046]
[1724562104085,2.2857,2771.2,2770.7,7.87790046]
[1724562104293,3.60868,2771.1,2770.7,3.0]
[1724562104506,3.60868,2771.1,2770.6,5.4391]
[1724562104706,3.60868,2771.1,2770.6,2.4391]
[1724562104905,0.74036836,2771.0,2770.5,4.87809046]
[1724562105304,4.34926836,2771.0,2770.4,2.4391]
[1724562105552,2.2857,2770.9,2770.3,8.48800046]
[1724562105829,7.40395359,2770.9,2770.3,8.48800046]
[1724562105999,7.40395359,2770.9,2770.4,3.60956]
[1724562106193,5.89465,2770.9,2770.4,3.60956]
[1724562107713,8.7683352,2770.9,2770.1,3.60986]
[1724562108030,5.11849359,2770.7,2770.1,4.87859046]
[1724562108507,2.2857,2770.6,2770.1,4.87859046]
[1724562109544,2.2857,2770.6,2770.1,8.48849046]
[1724562109750,2.2857,2770.6,2770.1,4.87859046]
[1724562110247,3.60969,2770.4,2769.8,6.04944]
[1724562110469,3.60969,2770.4,2769.4,0.56580484]
[1724562110470,2.2857,2770.1,2769.4,0.56580484]
[1724562110606,2.2857,2770.1,2769.3,2.4391]
[1724562110607,3.61044,2769.8,2769.3,2.4391]
[1724562111245,4.87892046,2770.0,2769.3,2.4391]
[1724562111433,4.87892046,2770.0,2769.3,6.05009]
[1724562111636,3.61019,2770.0,2769.4,4.87961046]
[1724562115323,3.61025,2769.9,2769.4,3.61088]
[1724562118426,4.50042441,2770.0,2769.4,3.61088]
[1724562119744,0.89023441,2770.0,2769.4,7.22169]
[1724562120050,0.89023441,2770.0,2769.4,3.61081]
[1724562120587,0.89023441,2770.0,2769.4,4.87954046]
[1724562121922,0.89023441,2770.0,2769.4,8.49033046]
[1724562122120,0.89023441,2770.0,2769.4,4.87952046]
[1724562123054,4.50036441,2770.0,2769.4,4.87952046]
[1724562123221,1.06246744,2769.9,2769.4,4.87952046]
[1724562123863,4.50036441,2770.0,2769.4,8.49031046]
[1724562124429,0.89023441,2770.0,2769.4,8.49031046]
[1724562125331,0.89023441,2770.0,2769.4,4.87952046]
[1724562125726,0.89023441,2770.0,2769.4,8.49033046]
[1724562126072,11.06978,2770.3,2769.6,4.87926046]
[1724562126373,3.60952,2770.5,2769.8,4.87900046]
[1724562126571,3.60925,2770.7,2770.1,5.93198]
[1724562127275,0.590825,2770.6,2770.1,5.93198]
[1724562127767,0.540825,2770.6,2770.1,5.93198]
[1724562128454,3.60925,2770.7,2770.1,5.93198]
[1724562131031,3.60925,2770.7,2770.1,2.3221]
[1724562131239,3.60933,2770.6,2770.1,2.3221]
[1724562131789,2.299,2770.8,2770.1,5.93205]
[1724562132176,4.87773046,2770.9,2770.1,5.93205]
[1724562132354,0.55,2770.8,2770.1,5.93205]
[1724562132556,0.55,2770.8,2770.1,7.01314705]
[1724562132885,3.60923,2770.7,2770.1,7.01314705]
[1724562133685,3.60934,2770.6,2770.1,3.40319705]
[1724562133889,3.60934,2770.6,2770.1,2.3221]
[1724562141312,3.60895,2770.9,2770.3,2.3095]
[1724562141683,3.60907,2770.8,2770.3,2.3095]
[1724562142604,3.60927,2770.7,2770.3,2.3095]
[1724562144426,3.60895,2770.9,2770.3,2.3095]
[1724562144920,3.60895,2770.9,2770.5,2.4659]
[1724562145100,7.21797,2770.9,2770.5,2.4659]
[1724562145687,3.60907,2770.8,2770.5,2.4659]
[1724562146085,3.6092,2770.7,2770.3,2.4659]
[1724562148705,8.72729359,2770.9,2770.3,2.4659]
[1724562148927,8.72729359,2770.9,2770.3,6.0756]
[1724562148928,7.21799,2770.9,2770.3,6.0756]
[1724562149329,8.72729359,2770.9,2770.3,6.0756]
[1724562149531,5.11825359,2770.9,2770.3,6.0756]
[1724562149738,3.60895,2770.9,2770.4,2.4659]
[1724562150435,3.60908,2770.8,2770.4,2.4659]
[1724562162048,1.50930359,2770.9,2770.4,6.07547]
[1724562162353,1.50930359,2771.0,2770.6,5.9237]
[1724562162521,1.50930359,2771.0,2770.6,2.3144]
[1724562163161,5.11812359,2771.0,2770.6,2.3144]
[1724562163653,1.50930359,2770.9,2770.6,2.3144]
[1724562165227,5.11824359,2770.9,2770.6,2.3144]
[1724562166234,3.60934,2770.6,2770.3,2.3144]
[1724562166426,7.21875,2770.6,2770.3,2.3144]
[1724562166752,7.21876,2770.6,2770.3,2.3144]
[1724562167256,3.60934,2770.6,2770.3,2.3144]
[1724562169351,5.11864359,2770.6,2770.3,2.3144]
[1724562172237,1.50930359,2770.5,2770.3,2.3144]
[1724562172434,3.60958,2770.4,2770.1,2.3144]
[1724562172658,5.11888359,2770.4,2770.1,2.3144]
[1724562173552,1.50930359,2770.4,2770.1,2.3144]
[1724562174297,1.50930359,2770.4,2770.1,3.58313046]
[1724562174580,1.50930359,2770.5,2770.1,3.58313046]
[1724562175543,1.50930359,2770.5,2770.1,7.19305046]
[1724562178671,1.50930359,2770.5,2770.2,3.60982]
[1724562182577,1.50930359,2770.4,2770.2,3.60982]
[1724562182778,1.50930359,2770.5,2770.2,3.60982]
[1724562183142,1.50930359,2770.4,2770.2,3.60982]
[1724562186442,1.50930359,2770.4,2770.1,3.58313046]
[1724562186689,1.50930359,2770.4,2770.1,7.19310046]
[1724562189185,1.50930359,2770.4,2770.2,3.60984]
[1724562189387,1.89590664,2770.5,2770.4,2.4983]
[1724562189388,1.50930359,2770.5,2770.4,2.4983]
[1724562189555,1.50930359,2770.6,2770.4,2.4983]
[1724562189958,1.50930359,2770.6,2770.4,6.1078]
[1724562192400,1.50930359,2770.6,2770.4,2.4983]
[1724562192565,2.23608367,2770.6,2770.2,3.60979]
[1724562192889,1.51660389,2770.5,2770.2,3.60979]
[1724562193394,1.51660389,2770.5,2770.1,2.4983]
[1724562193555,1.51660389,2770.4,2770.1,6.10825]
[1724562193759,1.51660389,2770.4,2770.1,2.4983]
[1724562193987,1.51660389,2770.4,2770.0,3.60998]
[1724562194160,1.51660389,2770.3,2770.0,3.60998]
[1724562196598,1.51660389,2770.4,2770.0,3.60998]
[1724562197195,1.51660389,2770.3,2770.0,3.60998]
[1724562200699,1.51660389,2770.4,2770.0,3.60998]
[1724562203163,1.51660389,2770.4,2770.0,4.87871046]
[1724562204194,1.51660389,2770.4,2770.2,3.60984]
[1724562206513,1.51660389,2770.4,2770.1,3.60997]
[1724562208215,1.51660389,2770.3,2770.1,3.60997]
[1724562208387,1.51660389,2770.3,2770.0,4.87871046]
[1724562209014,1.51660389,2770.3,2770.0,8.48872046]
[1724562209403,1.51660389,2770.3,2770.0,8.48874046]
[1724562210824,1.51660389,2770.3,2770.0,4.87871046]
[1724562211502,1.51660389,2770.3,2770.0,8.48874046]
[1724562211807,1.51660389,2770.3,2770.0,8.48873046]
[1724562212010,1.51660389,2770.3,2770.0,4.87871046]
[1724562214350,1.51660389,2770.3,2770.0,3.60998]
[1724562219554,1.51660389,2770.2,2769.8,7.34]
[1724562219715,1.51660389,2770.0,2769.8,7.34]
[1724562220025,1.51660389,2769.9,2769.8,7.34]
[1724562220232,1.51660389,2770.0,2769.8,7.34]
[1724562220444,1.51660389,2770.0,2769.4,16.06085]
[1724562220445,1.9827281,2770.0,2769.4,4.87958046]
[1724562220601,5.12685389,2769.9,2769.4,4.87958046]
[1724562220934,7.50785389,2769.9,2769.4,4.87958046]
[1724562221137,7.50785389,2769.9,2769.4,3.61085]
[1724562225230,5.99125,2769.9,2769.4,3.61085]
[1724562225505,8.85562174,2769.9,2769.4,3.61085]
[1724562226067,7.33901785,2769.9,2769.4,3.61085]
[1724562227571,2.381,2769.8,2769.2,3.61107]
[1724562227745,3.89760389,2769.8,2769.2,3.61107]
[1724562228074,3.61054,2769.7,2769.2,4.87980046]
[1724562228276,2.381,2769.8,2769.3,3.611]
[1724562228475,3.45593321,2769.8,2769.2,7.29268046]
[1724562228651,8.5829171,2769.8,2769.2,7.29268046]
[1724562229174,7.06631321,2769.8,2769.2,7.29268046]
[1724562230270,7.06631321,2769.8,2769.2,10.90375046]
[1724562230671,1.51660389,2769.9,2769.7,6.02329]
[1724562230848,5.88077289,2770.3,2770.0,3.6101]
[1724562230849,1.51660389,2770.3,2770.0,3.6101]
[1724562231053,1.51660389,2770.4,2770.1,2.4129]
[1724562231284,1.51660389,2770.5,2770.2,1.26873046]
[1724562231486,1.51660389,2770.5,2770.0,1.26873046]
[1724562231487,0.7018498,2770.4,2770.0,1.26873046]
[1724562234063,4.3114398,2770.4,2770.0,1.26873046]
[1724562235265,5.82804369,2770.4,2770.0,1.26873046]
[1724562235968,4.3114398,2770.4,2770.0,1.26873046]
[1724562236166,3.60985,2770.2,2769.7,2.4129]
[1724562236469,3.60985,2770.2,2769.8,1.26873046]
[1724562236988,8.97660389,2770.5,2770.0,1.26873046]
[1724562237190,7.46,2770.5,2770.2,7.21957]
[1724562237393,7.46,2770.5,2770.2,3.60974]
[1724562237890,7.46,2770.5,2770.2,4.87847046]
[1724562238493,8.434188,2770.5,2770.2,4.72847046]
[1724562239608,8.434188,2770.5,2770.0,4.87877046]
[1724562239794,13.56025189,2770.5,2770.0,4.87877046]
[1724562239997,3.60994,2770.2,2769.6,6.05935]
[1724562240210,0.360994,2770.1,2769.7,1.26873046]
[1724562241615,3.970974,2770.1,2769.6,3.61055]
[1724562241813,5.87148,2770.0,2769.4,3.51083]
[1724562242020,0.77490779,2769.9,2769.4,4.77956046]
[1724562242179,4.38521779,2769.9,2769.4,4.77956046]
[1724562242873,0.77490779,2769.9,2769.4,4.77956046]
[1724562243704,0.77490779,2769.9,2769.4,8.39037046]
[1724562244820,4.38524779,2769.9,2769.3,3.611]
[1724562245021,4.27500178,2769.8,2769.2,3.61106]
[1724562245222,4.27500178,2769.8,2769.2,7.22212]
[1724562246791,4.27500178,2769.8,2769.3,1.26873046]
[1724562246987,0.57916057,2769.7,2769.3,1.26873046]
[1724562247217,0.57916057,2769.7,2769.3,4.87974046]
[1724562249433,4.27500178,2769.8,2769.3,4.87974046]
[1724562252536,4.27500178,2769.8,2769.3,1.26873046]
[1724562252755,2.2613,2769.7,2769.3,1.26873046]
[1724562254041,2.2613,2769.7,2769.2,3.61106]
[1724562254259,5.87186,2769.7,2769.1,4.88000046]
[1724562254395,0.65363018,2769.6,2769.1,4.88000046]
[1724562257548,1.92236064,2769.6,2769.0,0.56588779]
[1724562257730,3.61091,2769.4,2769.0,0.56588779]
[1724562258242,3.61091,2769.4,2768.8,4.88033046]
[1724562258468,0.604241,2769.3,2768.8,4.88033046]
[1724562260036,2.469,2769.2,2768.8,4.88033046]
[1724562260435,2.469,2769.2,2768.8,3.6116]
[1724562265340,2.469,2769.2,2768.8,4.88033046]
[1724562267390,6.08015,2769.2,2768.6,5.44659232]
[1724562267709,7.1096631,2769.2,2768.6,4.88057046]
[1724562269158,7.1096631,2769.2,2768.7,3.61179]
[1724562272291,7.1096631,2769.2,2768.6,8.49242046]
[1724562272601,3.61144,2769.0,2768.4,5.98663]
[1724562272770,2.469,2768.9,2768.6,1.26873046]
[1724562272978,3.24039041,2769.1,2768.6,4.88058046]
[1724562273611,2.469,2769.1,2768.8,4.88038046]
[1724562273795,6.07994,2769.4,2768.8,4.88031046]
[1724562274872,9.69092,2769.4,2768.8,4.88031046]
[1724562275105,6.07994,2769.4,2768.8,4.88031046]
[1724562276319,9.69092,2769.4,2768.8,4.88031046]
[1724562276475,0.969092,2769.3,2768.8,4.88031046]
[1724562276980,4.580112,2769.3,2768.8,4.88031046]
[1724562277602,0.969092,2769.3,2768.8,4.88031046]
[1724562277809,3.15806194,2769.7,2768.5,2.3745]
[1724562277810,1.51660389,2769.7,2769.3,3.611]
[1724562278108,5.87525,2769.8,2769.5,1.26873046]
[1724562278271,3.61062,2769.6,2769.3,1.26873046]
[1724562278475,0.361062,2769.5,2769.3,1.26873046]
[1724562281015,5.87524,2769.8,2769.3,1.26873046]
[1724562281809,3.61057,2769.7,2769.3,1.26873046]
[1724562289442,5.12717389,2769.7,2769.3,1.26873046]
[1724562289622,3.61057,2769.7,2769.3,1.26873046]
[1724562290348,5.12717389,2769.7,2769.3,1.26873046]
[1724562290734,1.10024139,2769.6,2769.3,1.26873046]
[1724562293249,1.51660389,2769.9,2769.6,2.3348]
[1724562293479,1.51660389,2769.9,2769.7,1.26873046]
[1724562293750,5.12691389,2769.9,2769.6,2.3348]
[1724562293911,4.67337022,2769.8,2769.5,1.26873046]
[1724562295362,6.18997411,2769.8,2769.5,1.26873046]
[1724562295665,4.67337022,2769.8,2769.5,1.26873046]
[1724562297628,6.18997411,2769.8,2769.5,1.26873046]
[1724562297841,0.98002841,2769.7,2769.5,1.26873046]
[1724562301125,1.06292022,2769.8,2769.5,1.26873046]
[1724562304591,1.06292022,2769.8,2769.4,2.3348]
[1724562304803,1.06292022,2769.8,2769.4,3.60353046]
[1724562304965,2.57952411,2769.8,2769.4,3.60353046]
[1724562305176,1.06292022,2769.8,2769.4,3.60353046]
[1724562305495,0.61898341,2769.7,2769.4,3.60353046]
[1724562306289,8.73723389,2769.9,2769.4,3.60353046]
[1724562306700,8.73723389,2769.9,2769.4,1.26873046]
[1724562306701,3.6104,2769.8,2769.4,1.26873046]
[1724562311108,5.12700389,2769.8,2769.4,1.26873046]
[1724562311319,7.58801389,2769.9,2769.4,1.26873046]
[1724562312185,11.19833389,2769.9,2769.4,1.26873046]
[1724562312383,1.30912718,2769.8,2769.4,4.87960046]
[1724562312572,1.51660389,2769.9,2769.5,2.3775]
[1724562312774,1.51660389,2770.0,2769.7,2.3775]
[1724562312975,1.51660389,2770.1,2769.7,2.3775]
[1724562313216,5.12660389,2770.1,2769.7,2.3775]
[1724562313420,0.75695418,2770.0,2769.7,2.3775]
[1724562314270,2.27355807,2770.0,2769.7,2.3775]
[1724562314470,0.75695418,2770.0,2769.7,2.3775]
[1724562315286,2.27355807,2770.0,2769.7,2.3775]
[1724562316649,0.75695418,2770.0,2769.7,2.3775]
[1724562317518,0.94936281,2769.9,2769.7,2.3775]
[1724562318323,2.27355807,2770.0,2769.7,2.3775]
[1724562318839,0.75695418,2770.0,2769.7,2.3775]
[1724562319129,5.12660389,2770.1,2769.7,2.3775]
[1724562319883,5.12660389,2770.1,2769.8,1.26873046]
[1724562319884,1.51660389,2770.1,2769.8,1.26873046]
[1724562320150,1.51660389,2770.3,2770.0,4.87876046]
[1724562321151,1.51660389,2770.4,2770.3,2.3447]
[1724562321292,1.51445992,2770.4,2770.3,2.3447]
[1724562321490,1.51445992,2770.5,2770.3,2.3447]
[1724562321694,1.87719697,2770.5,2770.3,2.3447]
[1724562322831,1.87719697,2770.5,2770.3,2.3447]
[1724562324174,1.51445992,2770.5,2770.3,2.3447]
[1724562328254,3.60971,2770.3,2770.1,2.3526]
[1724562328428,3.60971,2770.3,2770.0,1.26873046]
[1724562328630,5.12416992,2770.3,2770.0,1.26873046]
[1724562330673,3.60971,2770.3,2770.0,1.26873046]
[1724562331035,1.51445992,2770.4,2770.0,1.26873046]
[1724562332010,5.12390992,2770.5,2770.0,4.87881046]
[1724562332161,8.73347992,2770.5,2770.0,1.26873046]
[1724562332776,5.12390992,2770.5,2770.0,1.26873046]
[1724562333710,8.73346992,2770.5,2770.0,1.26873046]
[1724562333909,6.18659126,2770.5,2770.0,1.26873046]
[1724562334322,1.51445992,2770.4,2770.0,1.26873046]
[1724562334481,6.18659126,2770.5,2770.0,1.26873046]
[1724562335827,9.79613126,2770.5,2770.0,1.26873046]
[1724562336411,1.51445992,2770.4,2770.0,1.26873046]
[1724562337026,9.79613126,2770.5,2770.0,1.26873046]
[1724562337224,2.68339198,2770.4,2770.0,1.26873046]
[1724562337624,1.16893206,2770.4,2770.0,1.26873046]
[1724562338327,2.68339198,2770.4,2770.0,1.26873046]
[1724562339087,1.16893206,2770.4,2770.0,1.26873046]
[1724562341915,5.12390992,2770.5,2770.0,1.26873046]
[1724562344408,3.60945,2770.5,2770.0,4.87883046]
[1724562344621,3.60945,2770.5,2770.1,2.2632]
[1724562345246,7.21902,2770.5,2770.1,2.2632]
[1724562345447,8.73344992,2770.5,2770.1,2.2632]
[1724562345613,1.06253207,2770.4,2770.1,2.2632]
[1724562346311,5.12390992,2770.5,2770.1,2.2632]
[1724562346851,3.6096,2770.4,2770.1,2.2632]
[1724562347508,3.60979,2770.3,2770.1,2.2632]
[1724562347728,3.60998,2770.1,2769.7,2.2632]
[1724562349126,3.61025,2769.9,2769.4,2.2632]
[1724562349456,3.61057,2769.7,2769.2,2.2632]
[1724562349813,1.87548492,2769.8,2769.3,1.26873046]
[1724562350016,0.361025,2769.8,2769.2,2.2632]
[1724562350220,0.361025,2769.8,2769.5,1.26873046]
[1724562362035,3.971415,2769.8,2769.3,4.87966046]
[1724562362390,4.52012249,2769.7,2769.2,2.2632]
[1724562362683,4.52012249,2769.7,2769.2,5.87433]
[1724562364980,3.61051,2769.7,2769.2,5.87433]
[1724562367591,3.61025,2769.9,2769.3,4.87966046]
[1724562369073,7.22059,2769.9,2769.3,4.87966046]
[1724562369748,3.61025,2769.9,2769.3,4.87966046]
[1724562370062,3.61025,2769.9,2769.4,2.3802]
[1724562375487,4.67292096,2769.9,2769.4,2.3802]
[1724562375790,9.79771088,2769.9,2769.4,2.3802]
[1724562375958,8.28325096,2769.9,2769.4,2.3802]
[1724562376287,9.79771088,2769.9,2769.4,2.3802]
[1724562376592,6.18738088,2769.9,2769.4,2.3802]
[1724562376790,0.49294189,2769.8,2769.4,2.3802]
[1724562378653,6.18738088,2769.9,2769.4,5.99108]
[1724562379898,1.51445992,2769.9,2769.5,1.26873046]
[1724562380060,1.51445992,2770.0,2769.7,1.26873046]
[1724562380248,1.51445992,2770.1,2769.7,1.26873046]
[1724562380453,1.51445992,2770.1,2769.6,6.08161]
[1724562381305,5.12443992,2770.1,2769.6,6.08161]
[1724562383683,1.51445992,2770.0,2769.6,2.4711]
[1724562385436,5.12456992,2770.0,2769.6,2.4711]
[1724562386145,1.51445992,2769.9,2769.6,2.4711]
[1724562388743,1.51445992,2769.8,2769.6,2.4711]
[1724562388939,5.12469992,2769.9,2769.6,2.4711]
[1724562390038,1.51445992,2769.8,2769.6,2.4711]
[1724562392320,1.51445992,2769.9,2769.7,4.87922046]
[1724562392628,1.51445992,2770.0,2769.8,2.4844]
[1724562392813,1.51445992,2770.0,2769.9,3.75313046]
[1724562397032,1.51445992,2770.1,2770.0,6.0945]
[1724562397351,1.51445992,2770.3,2770.1,2.4844]
[1724562397511,1.51445992,2770.3,2770.1,7.36303046]
[1724562397708,1.51445992,2770.4,2770.1,7.36303046]
[1724562398044,1.51445992,2770.4,2770.3,1.26873046]
[1724562398834,1.51445992,2770.5,2770.3,1.26873046]
[1724562400720,1.51445992,2770.6,2770.3,1.26873046]
[1724562401053,1.51445992,2770.6,2770.4,2.4844]
[1724562404542,5.12371992,2770.7,2770.4,2.4844]
[1724562408945,8.73300992,2770.7,2770.2,2.331]
[1724562409520,1.51445992,2770.6,2770.2,2.331]
[1724562409821,5.12379992,2770.6,2770.2,2.331]
[1724562410329,1.51445992,2770.6,2770.2,2.331]
[1724562410534,5.12371992,2770.7,2770.2,2.331]
[1724562414021,1.51445992,2770.8,2770.4,5.94051]
[1724562414467,1.51445992,2770.8,2770.5,1.26873046]
[1724562414767,1.51445992,2770.8,2770.6,2.331]
[1724562417530,1.51445992,2770.9,2770.6,2.331]
[1724562419463,5.12333992,2771.0,2770.6,2.331]
[1724562420345,1.51445992,2770.9,2770.6,2.331]
[1724562426879,2.26861981,2771.3,2770.8,2.3819]
[1724562426880,1.51445992,2771.0,2770.8,2.3819]
[1724562427208,1.51445992,2771.1,2770.9,1.26873046]
[1724562427413,1.51445992,2771.2,2770.8,2.3819]
[1724562427905,5.12299992,2771.2,2770.8,2.3819]
[1724562429105,3.60871,2771.1,2770.6,3.60925]
[1724562429314,5.12316992,2771.1,2770.6,3.60925]
[1724562429950,5.12316992,2771.1,2770.6,7.07809005]
[1724562431159,5.12316992,2771.1,2770.6,4.69619005]
[1724562432080,1.51445992,2771.0,2770.4,5.99138]
[1724562432313,6.01219,2771.0,2770.4,5.99138]
[1724562432470,7.52664992,2771.0,2770.4,5.99138]
[1724562432907,7.52664992,2771.0,2770.4,9.60089]
[1724562433243,7.52664992,2771.0,2770.5,3.60944]
[1724562434005,3.91775992,2771.0,2770.5,3.60944]
[1724562434210,2.4033,2771.0,2770.5,3.60944]
[1724562436581,3.91775992,2771.0,2770.5,3.60944]
[1724562438140,1.51445992,2771.0,2770.5,4.87817046]
[1724562438343,1.51445992,2771.0,2770.6,3.60929]
[1724562441819,1.51445992,2771.0,2770.6,3.60924]
[1724562442024,1.51445992,2771.0,2770.7,1.26873046]
[1724562442346,1.51445992,2771.1,2770.7,1.26873046]
[1724562442918,1.51445992,2771.1,2770.8,3.609]
[1724562443326,1.51445992,2771.1,2770.9,4.87764046]
[1724562444730,1.51445992,2771.1,2771.0,2.2992]
[1724562445051,1.51445992,2771.2,2771.0,2.2992]
[1724562445252,1.51445992,2771.3,2771.0,2.2992]
[1724562446107,1.51445992,2771.3,2771.1,1.26873046]
[1724562450589,1.51445992,2771.4,2771.1,1.26873046]
[1724562450856,1.51445992,2771.3,2771.1,1.26873046]
[1724562451311,1.51445992,2771.4,2771.1,1.26873046]
[1724562451513,1.51445992,2771.3,2771.1,1.26873046]
[1724562452411,1.51445992,2771.4,2771.1,1.26873046]
[1724562456861,2.3628,2771.2,2770.6,2.3774]
[1724562457069,3.60874,2771.1,2770.6,3.64613046]
[1724562458573,5.12319992,2771.1,2770.6,3.64613046]
[1724562459375,5.12319992,2771.1,2770.6,7.25544046]
[1724562460062,3.87725992,2771.2,2770.6,7.25544046]
[1724562460258,3.87725992,2771.2,2770.6,8.34191851]
[1724562460481,3.87725992,2771.2,2770.8,1.26873046]
[1724562463795,1.51445992,2771.2,2770.8,4.87776046]
[1724562465464,1.51445992,2771.2,2770.8,1.26873046]
[1724562468587,1.51445992,2771.2,2770.8,4.87777046]
[1724562468793,1.51445992,2771.2,2770.9,2.3987]
[1724562470417,5.50160098,2771.3,2770.9,2.3987]
[1724562470418,1.51445992,2771.1,2770.9,2.3987]
[1724562471929,1.51445992,2771.1,2771.0,1.26873046]
[1724562472140,1.51445992,2771.1,2770.8,1.26873046]
[1724562474110,1.51445992,2771.1,2770.8,4.87772046]
[1724562480833,1.51445992,2771.0,2770.8,4.87772046]
[1724562484206,1.51445992,2771.1,2770.8,4.87772046]
[1724562484861,1.51445992,2771.0,2770.8,4.87772046]
[1724562487139,1.51445992,2771.0,2770.9,2.4912]
[1724562488377,1.51445992,2771.1,2770.9,2.4912]
[1724562488535,1.51445992,2771.0,2770.9,2.4912]
[1724562489075,1.51445992,2771.0,2770.8,8.48670046]
[1724562489669,1.51445992,2771.0,2770.8,4.87771046]
[1724562492045,1.51445992,2771.0,2770.8,8.48670046]
[1724562493290,1.51445992,2771.0,2770.8,4.87771046]
[1724562493648,1.51445992,2771.0,2770.8,3.60898]
[1724562501322,1.51445992,2770.9,2770.6,4.87793046]
[1724562501499,1.51445992,2770.9,2770.7,3.60912]
[1724562509033,1.51445992,2770.9,2770.8,3.60906]
[1724562515739,1.51445992,2770.9,2770.6,5.61484351]
[1724562515926,1.51445992,2770.9,2770.7,3.60912]
[1724562517435,1.51445992,2770.9,2770.5,2.4912]
[1724562517608,2.2949,2770.5,2769.9,0.75166486]
[1724562517812,5.1270096,2770.4,2769.9,5.61687726]
[1724562518007,1.5173796,2770.3,2769.9,3.6102]
[1724562518212,1.5173796,2770.3,2770.0,1.26873046]
[1724562518422,1.5173796,2770.4,2770.0,1.26873046]
[1724562519142,1.5173796,2770.4,2770.0,4.87878046]
[1724562519474,5.70919707,2770.5,2770.0,8.48880046]